bitfinex-derivatives/quotes_ETHF0:USTF0_20250224
["timestamp","ask_amount","ask_price","bid_price","bid_amount"]
[1740413117049,0.75185,2660.1,2660.0,4.44786]
[1740413117245,0.5443,2660.4,2660.1,0.75182]
[1740413117460,0.5443,2660.4,2660.0,3.696]
[1740413117657,0.5443,2660.4,2660.3,0.75177]
[1740413117855,1.29606,2660.4,2660.2,0.75179]
[1740413118054,0.75179,2660.3,2660.1,3.95962]
[1740413118355,0.75186,2660.0,2659.9,3.695]
[1740413118656,0.75186,2660.0,2659.2,1.88582483]
[1740413118657,2.42369,2660.4,2659.5,3.695]
[1740413118853,0.75191,2659.9,2659.7,0.75193]
[1740413119051,0.75189,2659.9,2659.7,0.75193]
[1740413119250,0.75189,2659.9,2659.6,3.2078]
[1740413119251,0.5443,2660.4,2659.6,3.2078]
[1740413119451,0.75194,2659.7,2659.6,3.2078]
[1740413119852,0.75197,2659.6,2659.5,3.695]
[1740413120056,2.4668,2660.0,2659.3,3.2078]
[1740413120057,1.87976,2659.9,2659.3,3.2078]
[1740413120252,0.75203,2659.4,2659.3,3.2078]
[1740413120959,0.5659,2659.6,2659.3,3.2078]
[1740413121159,0.5659,2659.6,2659.5,0.752]
[1740413121362,3.7551,2659.9,2659.3,3.2078]
[1740413121657,0.75202,2659.5,2659.4,0.75202]
[1740413122060,0.75203,2659.4,2659.3,3.2078]
[1740413122257,3.7551,2659.9,2659.3,3.2078]
[1740413122559,3.7551,2659.9,2659.2,0.00564483]
[1740413122560,1.153,2660.0,2659.6,3.2078]
[1740413122753,0.75194,2659.7,2659.6,6.9008]
[1740413122958,1.12854,2659.7,2659.6,3.3158]
[1740413123156,0.75206,2659.3,2659.2,4.45072483]
[1740413123463,1.87981,2659.8,2659.2,3.69864483]
[1740413123658,0.5511,2659.9,2659.2,3.69864483]
[1740413123854,0.5511,2659.9,2659.4,3.2078]
[1740413124055,0.75198,2659.6,2659.5,0.75198]
[1740413124354,0.75198,2659.6,2659.4,3.2078]
[1740413124355,1.153,2660.0,2659.4,3.2078]
[1740413124557,1.90487,2660.0,2659.9,0.75189]
[1740413124762,0.5667,2660.4,2659.7,6.9008]
[1740413124959,1.12839,2660.3,2660.2,0.75179]
[1740413125260,1.87918,2660.7,2660.5,0.75172]
[1740413125261,0.75168,2660.7,2660.5,0.75172]
[1740413125456,3.2078,2661.1,2660.4,3.2078]
[1740413125652,0.75171,2660.6,2660.4,3.2078]
[1740413125856,0.75173,2660.5,2660.2,3.692]
[1740413126059,0.7517,2660.6,2660.5,0.75171]
[1740413126256,0.75165,2660.8,2660.4,3.2078]
[1740413126457,0.75165,2660.8,2660.6,0.75167]
[1740413126652,0.75168,2660.7,2660.4,0.30628466]
[1740413126854,0.75156,2661.1,2660.7,3.2078]
[1740413127068,1.12817,2661.1,2660.7,6.8988]
[1740413127254,1.87866,2661.5,2661.0,3.2078]
[1740413127255,0.3766,2661.5,2661.0,3.2078]
[1740413127462,0.3766,2661.2,2661.1,0.75155]
[1740413127756,3.2078,2661.6,2661.0,3.2078]
[1740413128070,0.75146,2661.5,2661.3,0.75148]
[1740413128260,3.95923,2661.6,2661.4,0.75145]
[1740413128456,0.75145,2661.5,2661.3,0.75147]
[1740413128663,0.75149,2661.3,2661.2,3.691]
[1740413129459,3.2078,2661.6,2661.2,3.691]
[1740413129657,0.75149,2661.3,2661.2,3.691]
[1740413132760,1.87856,2661.6,2660.9,3.2078]
[1740413132958,1.87856,2661.6,2660.7,0.75164]
[1740413132959,0.75166,2660.8,2660.7,0.75164]
[1740413133266,0.5325,2661.5,2660.7,3.689]
[1740413133464,2.41112,2661.5,2660.8,3.2078]
[1740413133771,0.75161,2660.9,2660.8,3.2078]
[1740413133971,0.75163,2660.8,2660.7,3.689]
[1740413134264,0.75166,2660.7,2660.6,0.00564483]
[1740413134456,4.346,2661.4,2660.6,0.00564483]
[1740413134663,0.75166,2660.7,2660.6,0.00564483]
[1740413135067,1.87894,2661.1,2660.6,0.00564483]
[1740413135365,0.75166,2660.8,2660.7,0.75164]
[1740413135561,0.75162,2660.9,2660.6,3.69364483]
[1740413135864,0.75153,2661.3,2661.2,0.7515]
[1740413136069,3.2078,2661.7,2661.2,3.688]
[1740413136371,3.75538,2662.8,2661.5,0.75144]
[1740413136372,4.8819,2662.3,2661.5,0.75144]
[1740413136562,4.2949,2662.3,2661.8,3.2078]
[1740413136762,0.75128,2662.1,2661.9,3.688]
[1740413136962,0.75129,2662.0,2661.9,3.688]
[1740413137477,3.7573,2662.3,2662.1,0.75125]
[1740413137478,4.50853,2662.3,2662.1,0.75125]
[1740413137774,0.5495,2662.3,2662.1,3.95906]
[1740413138067,0.5376,2663.0,2662.1,3.2078]
[1740413138268,0.75117,2662.5,2662.2,0.75121]
[1740413138468,0.5376,2663.0,2662.5,0.75114]
[1740413138667,0.5376,2663.0,2662.6,3.688]
[1740413139071,3.7651,2663.1,2662.6,3.688]
[1740413139371,5.08512,2663.4,2662.7,3.2078]
[1740413139667,1.87747,2663.1,2662.4,3.2078]
[1740413139865,1.87761,2662.9,2662.1,3.2078]
[1740413140061,0.75124,2662.2,2662.1,6.8948]
[1740413140266,0.5413,2662.8,2662.1,6.8948]
[1740413140569,0.75124,2662.2,2662.1,6.8948]
[1740413140772,0.75124,2662.2,2662.1,3.687]
[1740413141169,0.75123,2662.3,2662.1,0.75125]
[1740413141372,1.0813,2662.6,2662.0,20.843]
[1740413141567,0.75127,2662.1,2662.0,20.843]
[1740413141872,3.2078,2662.5,2662.0,20.843]
[1740413142174,0.5406,2662.6,2662.5,0.75115]
[1740413142373,0.5413,2662.8,2662.3,3.686]
[1740413142670,0.75113,2662.6,2662.5,3.2078]
[1740413142869,0.5413,2662.8,2662.5,3.2078]
[1740413143073,0.5413,2662.8,2662.3,3.686]
[1740413143074,0.5413,2662.8,2662.4,0.75117]
[1740413143268,0.75118,2662.4,2662.3,3.686]
[1740413143567,0.5413,2662.8,2662.4,0.75117]
[1740413143773,0.75115,2662.6,2662.5,3.2078]
[1740413143974,0.5413,2662.8,2662.3,3.686]
[1740413144171,0.75115,2662.6,2662.5,3.95895]
[1740413144666,0.5406,2662.9,2662.8,0.75107]
[1740413144866,0.75104,2663.0,2662.8,3.2078]
[1740413145061,0.5561,2663.3,2662.8,3.2078]
[1740413145270,0.75107,2662.8,2662.7,3.685]
[1740413145469,0.75099,2663.1,2662.7,3.685]
[1740413145771,0.5695,2663.4,2662.9,3.2078]
[1740413145971,0.7508,2663.8,2663.6,0.75083]
[1740413146175,3.5627,2664.1,2663.5,3.685]
[1740413146378,0.75084,2663.6,2663.5,3.685]
[1740413146574,1.6859,2664.1,2663.5,3.685]
[1740413146776,0.75083,2663.7,2663.5,4.43585]
[1740413147073,0.75081,2663.8,2663.6,0.75083]
[1740413147275,0.75081,2663.8,2663.6,0.75082]
[1740413147575,0.75079,2663.8,2663.7,0.7508]
[1740413147879,1.6859,2664.1,2663.5,3.685]
[1740413148074,0.75077,2663.9,2663.7,0.7508]
[1740413148270,0.75079,2663.8,2663.6,0.75084]
[1740413148470,0.75079,2663.8,2663.6,0.75082]
[1740413148774,1.6859,2664.1,2663.5,3.685]
[1740413148974,0.75083,2663.7,2663.5,4.43586]
[1740413149170,1.6859,2664.1,2663.5,3.685]
[1740413149371,0.75078,2663.9,2663.7,0.7508]
[1740413149583,1.6859,2664.1,2663.6,0.75083]
[1740413149870,1.6859,2664.1,2663.5,3.685]
[1740413150080,0.75083,2663.7,2663.5,3.685]
[1740413150376,0.75084,2663.6,2663.5,3.685]
[1740413150771,0.75087,2663.5,2663.4,3.21343401]
[1740413150975,0.75087,2663.5,2663.4,0.00563401]
[1740413151170,0.75087,2663.5,2662.3,1.878]
[1740413151171,0.75104,2662.9,2662.8,3.2078]
[1740413151366,1.87743,2663.2,2662.5,0.75114]
[1740413151570,0.75112,2662.7,2662.6,0.75111]
[1740413151873,0.5548,2663.1,2662.6,3.682]
[1740413152178,0.5409,2663.4,2663.0,3.2078]
[1740413152378,0.7511,2662.7,2662.6,7.94164189]
[1740413152578,0.00559797,2663.1,2662.6,7.19054189]
[1740413152778,0.75660797,2663.1,2663.0,0.75101]
[1740413153176,0.00559797,2663.1,2663.0,0.75101]
[1740413153373,0.3766,2663.4,2663.3,0.75093]
[1740413153682,0.3766,2663.4,2663.3,7.64073]
[1740413153976,0.5548,2664.0,2663.3,6.8898]
[1740413154178,0.3766,2663.9,2663.3,6.8898]
[1740413154685,0.3766,2663.6,2663.3,6.8898]
[1740413154981,0.3766,2663.6,2663.5,0.75087]
[1740413155580,0.3766,2663.9,2663.8,0.75079]
[1740413156282,1.1274,2663.8,2663.6,3.2078]
[1740413156575,1.1274,2663.8,2663.6,3.95864]
[1740413156576,0.3766,2663.7,2663.6,3.95864]
[1740413157283,1.12722,2664.4,2663.7,1.87704]
[1740413157580,0.5456,2664.7,2664.3,5.0844]
[1740413157788,0.02062622,2664.9,2664.4,3.68]
[1740413157983,0.75055,2664.7,2664.6,0.75055]
[1740413158181,0.75052,2664.8,2664.7,0.75053]
[1740413158380,0.02062622,2664.9,2664.4,3.68]
[1740413158581,0.02062622,2664.9,2664.8,0.75051]
[1740413159377,0.02062622,2664.9,2664.7,0.30358851]
[1740413159583,0.77110622,2664.9,2664.6,3.2078]
[1740413159880,0.75053,2664.7,2664.6,3.68]
[1740413160275,3.22842622,2664.9,2664.2,0.00563401]
[1740413160475,0.75065,2664.3,2664.2,0.00563401]
[1740413160886,2.41268,2664.6,2664.2,0.00563401]
[1740413160887,0.5362,2664.6,2664.2,0.00563401]
[1740413161079,3.22842622,2664.9,2664.3,3.2078]
[1740413161279,3.22842622,2664.9,2664.4,3.679]
[1740413161491,3.97891622,2664.9,2664.4,5.55552]
[1740413161688,0.02062622,2664.9,2664.8,0.75051]
[1740413163285,3.2078,2665.3,2664.8,0.75049]
[1740413163488,0.75046,2665.0,2664.9,7.63627]
[1740413163692,0.75046,2665.0,2664.9,3.678]
[1740413164093,0.75053,2664.7,2664.6,3.2078]
[1740413164392,0.75053,2664.7,2664.6,6.8858]
[1740413164896,0.5726,2665.0,2664.6,3.678]
[1740413165090,3.7545,2665.5,2665.3,0.75036]
[1740413165289,0.75035,2665.4,2665.3,3.678]
[1740413165684,1.1094,2665.5,2665.3,6.8858]
[1740413165886,3.2078,2666.3,2665.3,6.8858]
[1740413166090,0.75015,2666.1,2665.6,5.08348]
[1740413166395,3.2078,2667.2,2666.1,1.87536]
[1740413166592,3.2078,2667.2,2666.5,3.2078]
[1740413166801,3.2078,2667.2,2666.6,0.74999]
[1740413166802,0.74995,2666.8,2666.6,0.74999]
[1740413166986,3.2078,2667.2,2666.7,3.677]
[1740413167185,3.2078,2667.5,2666.8,3.2078]
[1740413167391,3.2078,2667.5,2666.9,3.677]
[1740413167392,0.74989,2667.0,2666.9,3.677]
[1740413167584,1.87482,2666.9,2666.2,4.48369439]
[1740413167789,1.8747,2667.1,2666.7,0.00563401]
[1740413167994,0.74994,2666.8,2666.7,0.00563401]
[1740413168297,1.31251,2667.3,2666.7,0.00563401]
[1740413168485,1.31253,2667.3,2666.8,6.8848]
[1740413168687,0.5627,2667.3,2667.0,0.74987]
[1740413168888,3.2078,2667.5,2666.9,20.812]
[1740413169190,3.2078,2668.2,2667.4,3.2078]
[1740413169391,3.2078,2668.2,2667.7,3.2078]
[1740413169591,0.74962,2668.0,2667.7,3.2078]
[1740413169896,3.7641,2668.7,2667.8,3.675]
[1740413170095,3.2078,2668.7,2668.0,3.2078]
[1740413170395,1.29756,2668.9,2668.6,0.74942]
[1740413170593,3.2078,2669.0,2668.3,3.2078]
[1740413170790,0.74955,2668.2,2668.1,20.81762324]
[1740413171192,1.1074,2668.5,2668.2,0.74954]
[1740413171497,0.5482,2668.5,2668.1,20.81762324]
[1740413171698,3.2078,2669.0,2668.2,3.2078]
[1740413171900,1.1074,2669.2,2668.3,3.2078]
[1740413172191,1.1074,2669.2,2668.4,3.674]
[1740413172395,0.74955,2668.2,2668.1,24.49162324]
[1740413173099,0.74952,2668.3,2668.1,24.49162324]
[1740413173303,3.2078,2668.4,2668.1,24.49162324]
[1740413173490,0.74955,2668.2,2668.1,24.49162324]
[1740413173691,3.2078,2668.4,2668.1,24.49162324]
[1740413173895,3.2078,2669.0,2668.1,24.49162324]
[1740413174401,0.74947,2668.5,2668.3,0.7495]
[1740413174699,0.01102419,2669.0,2668.9,0.74935]
[1740413174898,3.2078,2669.3,2669.2,0.74927]
[1740413175499,3.2078,2669.7,2669.2,3.2078]
[1740413175802,1.6616,2669.9,2669.2,3.2078]
[1740413175997,3.2078,2670.1,2669.9,0.74906]
[1740413176198,3.2078,2670.1,2669.5,3.2078]
[1740413176199,0.5643,2670.7,2670.0,3.672]
[1740413176500,3.7721,2670.7,2670.1,3.67762324]
[1740413176703,3.7721,2670.7,2670.2,3.672]
[1740413176997,3.2078,2670.3,2670.1,0.00562324]
[1740413177198,0.74899,2670.2,2670.1,0.00562324]
[1740413177502,0.74916,2669.6,2669.5,20.8]
[1740413177700,3.95696,2669.6,2669.5,20.8]
[1740413177997,3.2078,2669.6,2669.5,21.54918]
[1740413178200,3.95696,2669.6,2669.5,20.8]
[1740413178700,3.2078,2669.6,2669.3,0.00562324]
[1740413178904,0.74921,2669.4,2669.3,0.00562324]
[1740413179496,3.2078,2669.6,2669.3,0.00562324]
[1740413179700,0.00558733,2669.8,2669.3,0.00562324]
[1740413179903,0.00558733,2669.8,2669.3,3.21342324]
[1740413180104,0.00558733,2669.8,2669.7,0.74913]
[1740413180405,3.2078,2670.7,2669.7,3.67]
[1740413180603,3.2078,2671.0,2670.6,0.74888]
[1740413180801,3.95657,2671.0,2670.9,0.74879]
[1740413180999,3.95657,2671.0,2670.8,3.67]
[1740413181304,3.2078,2671.0,2670.9,0.74879]
[1740413181499,0.74879,2670.9,2670.8,3.67]
[1740413181999,3.2078,2671.0,2670.6,0.00562324]
[1740413182197,3.95665,2670.7,2670.6,0.00562324]
[1740413182395,3.2078,2671.0,2670.6,3.67462324]
[1740413183199,3.2078,2671.6,2670.9,3.2078]
[1740413183394,0.74885,2670.7,2670.6,0.00562324]
[1740413183594,3.2078,2671.2,2670.6,0.00562324]
[1740413183794,0.74885,2670.7,2670.6,0.00562324]
[1740413186215,1.1173,2671.0,2670.6,0.00562324]
[1740413186511,1.1173,2671.0,2670.7,3.668]
[1740413186699,0.5721,2671.0,2670.7,3.668]
[1740413186899,3.2078,2671.2,2670.7,3.668]
[1740413187117,3.2078,2672.0,2671.1,3.2078]
[1740413187306,3.2078,2672.0,2671.5,3.2078]
[1740413187507,5.07902,2672.0,2671.5,3.668]
[1740413187810,3.2078,2672.0,2671.5,3.668]
[1740413188209,3.2078,2672.0,2671.5,6.8758]
[1740413188618,3.2078,2672.1,2671.5,6.8758]
[1740413189310,0.74848,2672.1,2671.5,6.8758]
[1740413189615,0.74848,2672.1,2671.8,3.2078]
[1740413189819,3.2078,2672.9,2671.8,3.2078]
[1740413190111,3.2078,2672.1,2671.5,3.668]
[1740413190408,0.7486,2671.6,2671.5,3.666]
[1740413190610,0.7486,2671.6,2671.5,0.00562324]
[1740413191007,1.1237,2672.0,2671.5,0.00562324]
[1740413191410,0.74856,2671.8,2671.5,0.00562324]
[1740413191614,1.1237,2672.0,2671.5,0.00562324]
[1740413191817,0.7486,2671.6,2671.5,0.00562324]
[1740413192117,0.74853,2671.9,2671.5,0.00562324]
[1740413192321,0.74851,2671.9,2671.5,0.00562324]
[1740413192617,1.8708,2672.6,2671.6,3.2078]
[1740413192807,0.74845,2672.2,2671.9,3.2078]
[1740413193009,4.32,2672.8,2671.9,3.2078]
[1740413193212,0.74836,2672.5,2671.9,3.2078]
[1740413193410,1.87079,2672.6,2671.9,3.2078]
[1740413193605,1.87084,2672.6,2671.9,3.2078]
[1740413193906,3.2078,2672.5,2671.7,3.666]
[1740413194110,3.2078,2672.3,2671.5,3.67062324]
[1740413194308,5.07881,2672.3,2671.5,3.67062324]
[1740413194624,0.74852,2671.9,2671.5,3.67062324]
[1740413194815,5.07881,2672.3,2671.5,3.67062324]
[1740413194816,3.2078,2672.3,2671.5,3.67062324]
[1740413195117,0.7486,2671.6,2671.5,3.67062324]
[1740413195308,0.74859,2671.7,2671.5,3.67062324]
[1740413195504,3.2078,2672.0,2671.5,0.00562324]
[1740413195710,0.74851,2671.9,2671.5,0.00562324]
[1740413195911,4.2934,2672.0,2671.5,0.00562324]
[1740413196112,0.7486,2671.6,2671.5,0.00562324]
[1740413196318,0.74858,2671.7,2671.5,0.00562324]
[1740413196616,0.5385,2672.0,2671.6,6.8728]
[1740413196818,0.74844,2672.2,2671.6,6.8728]
[1740413197120,3.2078,2672.5,2671.6,6.8728]
[1740413197414,0.74844,2672.2,2671.9,3.2078]
[1740413197612,3.2078,2672.5,2671.9,3.2078]
[1740413197805,3.5828,2672.5,2671.6,7.4325]
[1740413198008,3.2078,2672.5,2671.6,7.4325]
[1740413198519,0.74844,2672.2,2671.6,7.4325]
[1740413198912,3.2078,2673.6,2671.9,3.2078]
[1740413199106,0.5387,2673.3,2672.8,3.2078]
[1740413199308,0.76176,2673.4,2673.1,3.2078]
[1740413199510,0.01364,2673.4,2673.1,3.2078]
[1740413199710,0.76175,2673.4,2673.1,3.2078]
[1740413199912,0.74815,2673.2,2673.1,3.2078]
[1740413200113,0.74818,2673.1,2673.0,0.00561241]
[1740413200518,0.74823,2672.9,2672.8,3.2078]
[1740413200818,0.74837,2672.4,2672.3,3.2078]
[1740413202109,0.74837,2672.4,2671.3,21.2997]
[1740413202110,6.0,2672.4,2671.9,3.2078]
[1740413202417,0.74857,2671.7,2671.6,3.2078]
[1740413203911,0.5489,2671.8,2671.4,0.00561241]
[1740413204112,1.29745,2671.8,2671.4,0.00561241]
[1740413204312,0.5489,2671.8,2671.5,3.2078]
[1740413204714,0.74859,2671.7,2671.5,3.2078]
[1740413204916,0.5489,2671.8,2671.5,3.2078]
[1740413205113,0.74862,2671.5,2671.4,0.00561241]
[1740413205814,0.5489,2671.8,2671.4,0.55863898]
[1740413206011,0.5489,2671.8,2671.4,0.00561241]
[1740413206214,0.47042996,2672.0,2671.6,3.2078]
[1740413206411,0.5618,2672.1,2671.7,0.55293291]
[1740413206713,0.5618,2672.1,2671.6,3.2078]
[1740413207018,0.74857,2671.7,2671.6,3.2078]
[1740413207214,0.5618,2672.1,2671.6,3.7610689]
[1740413207419,0.5618,2672.1,2671.7,0.55319633]
[1740413207615,0.74862,2671.5,2671.4,0.00561241]
[1740413208316,2.43295,2672.1,2671.4,0.00561241]
[1740413208516,0.74862,2671.5,2671.4,0.00561241]
[1740413208715,1.87132,2671.9,2671.4,0.55921456]
[1740413209016,0.74862,2671.5,2671.4,0.00561241]
[1740413209822,0.74862,2671.5,2671.4,0.5599622]
[1740413210416,0.74862,2671.5,2671.4,0.56040847]
[1740413210717,0.74865,2671.4,2671.3,3.2078]
[1740413211022,0.74879,2670.9,2670.8,3.2078]
[1740413211319,0.74888,2670.6,2670.5,3.2078]
[1740413212022,0.74885,2670.7,2670.5,3.2078]
[1740413212219,3.7967,2671.4,2670.5,3.2078]
[1740413212415,0.74869,2671.3,2670.8,3.2078]
[1740413212614,3.2078,2672.2,2671.2,3.2078]
[1740413212817,0.5889,2672.0,2671.5,3.2078]
[1740413213017,0.74852,2671.9,2671.5,3.2078]
[1740413213320,0.7486,2671.6,2671.5,2.4556]
[1740413213518,0.375,2671.5,2671.2,3.2078]
[1740413213822,0.74867,2671.4,2671.2,3.2078]
[1740413214218,3.2078,2671.6,2670.9,3.2078]
[1740413214431,1.12383,2670.8,2670.5,3.2078]
[1740413214622,0.375,2671.1,2670.5,3.2078]
[1740413214925,1.87157,2671.5,2670.6,3.2078]
[1740413215110,0.74884,2670.8,2670.6,3.2078]
[1740413215312,1.87164,2671.4,2670.6,3.2078]
[1740413215516,0.375,2670.9,2670.6,3.2078]
[1740413215712,0.375,2671.1,2670.6,3.2078]
[1740413215912,0.5322,2671.5,2670.4,0.30651786]
[1740413215913,0.7487,2671.3,2670.9,3.2078]
[1740413216117,0.5322,2671.5,2670.9,3.2078]
[1740413216418,0.74876,2671.0,2670.9,3.2078]
[1740413217326,1.32162,2671.2,2670.9,3.2078]
[1740413217526,1.69662,2671.2,2670.9,3.2078]
[1740413217823,0.9479,2671.2,2670.9,3.2078]
[1740413218225,0.375,2671.4,2670.9,3.2078]
[1740413218424,1.12372,2671.2,2670.9,3.2078]
[1740413218722,0.375,2671.2,2670.9,3.2078]
[1740413219028,1.65583,2671.5,2670.9,3.2078]
[1740413219222,0.375,2671.5,2671.3,3.2078]
[1740413219524,1.12365,2671.4,2671.3,3.2078]
[1740413219720,4.625,2671.4,2671.0,3.2078]
[1740413219922,1.12393,2670.4,2670.3,0.00561241]
[1740413220319,7.12393,2670.4,2670.3,2.41e-06]
[1740413220520,1.12393,2670.4,2670.3,2.41e-06]
[1740413220726,0.375,2670.4,2670.3,2.41e-06]
[1740413220925,0.74893,2670.4,2670.3,2.41e-06]
[1740413221115,9.95673,2670.4,2670.3,2.41e-06]
[1740413221515,13.68473,2670.4,2670.3,2.41e-06]
[1740413221921,0.74938,2668.8,2668.7,0.5445]
[1740413222129,1.87328,2669.1,2668.5,5.08145]
[1740413222130,3.2078,2669.1,2668.5,5.08145]
[1740413222427,3.2078,2669.2,2668.4,0.5445]
[1740413222627,0.74949,2668.4,2668.3,12.29183096]
[1740413222824,0.74955,2668.2,2668.1,20.762]
[1740413223024,0.00561241,2668.6,2668.1,61.56761241]
[1740413223220,0.00561241,2668.6,2668.2,3.2078]
[1740413223416,0.74955,2668.2,2668.1,61.8733907]
[1740413223629,0.75506241,2668.6,2668.1,24.2811907]
[1740413223828,0.74947,2668.5,2668.3,0.74951]
[1740413224027,3.2078,2669.6,2668.4,3.2078]
[1740413224227,3.2078,2670.0,2669.3,3.2078]
[1740413224428,3.2078,2670.0,2669.3,6.9678]
[1740413224642,0.74896,2670.4,2670.1,0.749]
[1740413224826,3.2078,2670.5,2669.8,3.759]
[1740413225134,3.2078,2670.5,2668.3,0.5568]
[1740413225135,0.74919,2669.5,2669.3,3.95703]
[1740413225426,0.74904,2670.0,2669.9,0.00561241]
[1740413225624,0.00561241,2670.4,2669.9,3.21341241]
[1740413225828,0.75456241,2670.4,2670.1,0.749]
[1740413226025,0.00561241,2670.4,2670.3,0.74896]
[1740413226519,3.7745,2671.2,2670.5,0.74888]
[1740413226722,0.74902,2670.1,2670.0,0.5648]
[1740413226925,3.2078,2670.6,2669.9,0.00561241]
[1740413227133,0.74904,2670.0,2669.9,0.00561241]
[1740413228331,0.375,2669.7,2668.5,3.2078]
[1740413228632,0.74939,2668.8,2668.6,0.74942]
[1740413228830,3.2078,2669.4,2668.5,3.51588235]
[1740413229031,1.87311,2669.3,2668.5,3.51588235]
[1740413229232,3.2078,2669.4,2668.8,3.2078]
[1740413229422,3.2078,2669.4,2668.9,3.768]
[1740413229631,6.9758,2670.1,2669.1,3.2078]
[1740413229830,1.87269,2669.9,2669.1,3.2078]
[1740413230029,0.74927,2669.2,2668.9,3.768]
[1740413230226,1.87276,2669.8,2669.2,1.87317]
[1740413230227,0.74911,2669.8,2669.2,1.87317]
[1740413230533,3.2078,2670.0,2669.3,3.774]
[1740413230733,0.00557629,2670.2,2669.4,3.2078]
[1740413231133,0.00557629,2670.2,2669.7,3.2078]
[1740413231331,0.00557629,2670.2,2670.1,0.74902]
[1740413231534,0.00557629,2670.2,2670.0,3.2078]
[1740413231833,0.75458629,2670.2,2669.8,4.351]
[1740413232030,0.74897,2670.3,2670.1,0.749]
[1740413232227,3.7853,2670.7,2669.8,4.351]
[1740413232427,0.74907,2670.0,2669.8,0.575]
[1740413232729,3.2078,2671.0,2670.0,1.87261]
[1740413232930,5.07972,2671.0,2670.2,3.2078]
[1740413233131,5.07972,2671.0,2670.7,0.74884]
[1740413233132,0.00561241,2670.8,2670.7,0.74884]
[1740413233338,0.00561241,2670.8,2670.5,3.796]
[1740413233635,3.2078,2671.2,2671.0,0.74876]
[1740413233933,3.2078,2671.2,2670.3,3.803]
[1740413234232,1.87185,2671.1,2670.3,7.87005945]
[1740413234434,3.2078,2671.2,2670.9,0.74878]
[1740413234736,0.74889,2670.6,2670.4,0.74893]
[1740413234928,3.95652,2671.2,2671.0,0.74874]
[1740413235130,1.0933,2671.5,2670.6,3.2078]
[1740413235325,3.2078,2672.4,2671.3,3.2078]
[1740413235527,3.2078,2672.4,2671.6,3.2078]
[1740413235730,0.74855,2671.8,2671.6,4.59559]
[1740413236033,0.74856,2671.8,2671.6,3.85261241]
[1740413236238,3.95626,2672.1,2671.6,3.85261241]
[1740413236438,0.7485,2672.0,2671.7,3.2078]
[1740413236635,0.74857,2671.7,2671.6,3.85261241]
[1740413236835,0.74855,2671.8,2671.6,3.85261241]
[1740413237134,3.74146,2672.7,2671.6,3.85261241]
[1740413237135,4.3031,2672.8,2671.7,3.2078]
[1740413237336,1.87072,2672.7,2672.0,3.2078]
[1740413237536,4.3031,2672.8,2672.1,3.839]
[1740413237835,0.74843,2672.2,2672.1,3.839]
[1740413238230,1.87072,2672.7,2672.1,3.839]
[1740413238430,1.87072,2672.7,2672.0,3.2078]
[1740413238431,0.74857,2671.7,2671.6,0.75419241]
[1740413238629,3.2078,2672.2,2671.6,0.00561241]
[1740413238829,5.07892,2672.2,2671.6,0.75419241]
[1740413239029,0.74853,2671.9,2671.7,3.2078]
[1740413239333,1.87046,2673.1,2671.7,3.2078]
[1740413239534,0.74843,2672.2,2672.1,3.95624]
[1740413239733,0.74839,2672.4,2672.2,0.7484]
[1740413239941,0.74839,2672.4,2672.1,3.2078]
[1740413239942,1.87064,2672.9,2672.3,3.834]
[1740413240140,3.2078,2673.1,2672.4,5.07873]
[1740413240345,3.95599,2673.1,2672.9,0.74822]
[1740413240639,3.95599,2673.1,2672.9,4.58121]
[1740413240640,3.2078,2673.1,2672.9,4.58121]
[1740413240837,0.7482,2673.0,2672.9,3.833]
[1740413241434,3.2078,2673.1,2672.5,0.5331]
[1740413241739,0.74828,2672.8,2672.7,0.74829]
[1740413242044,1.87036,2673.3,2672.7,0.74829]
[1740413242235,3.2078,2673.5,2672.6,3.822]
[1740413242436,0.74829,2672.7,2672.6,3.822]
[1740413242640,3.2078,2672.7,2671.8,0.30277638]
[1740413242836,3.2078,2672.6,2671.9,3.2078]
[1740413243032,1.87079,2672.6,2671.6,3.21341241]
[1740413243232,1.87079,2672.6,2671.9,3.2078]
[1740413243432,0.74847,2672.1,2672.0,0.74846]
[1740413243738,0.74848,2672.1,2672.0,0.74847]
[1740413243936,0.74852,2671.9,2671.8,0.74853]
[1740413244238,1.87111,2672.2,2671.6,3.21341241]
[1740413244444,2.41165,2672.6,2671.6,3.51946151]
[1740413244641,2.41165,2672.6,2671.7,1.87143]
[1740413244937,3.7641,2673.0,2672.2,3.2078]
[1740413245143,0.74834,2672.5,2672.4,0.74835]
[1740413245347,0.74836,2672.5,2672.2,3.2078]
[1740413245549,0.74833,2672.6,2672.5,0.74833]
[1740413245739,1.87058,2672.9,2672.2,3.2078]
[1740413245935,3.22162,2673.5,2672.5,5.07862]
[1740413246141,0.74822,2673.0,2672.8,3.2078]
[1740413246444,0.7482,2673.0,2672.9,4.58123]
[1740413246640,0.7482,2673.0,2672.9,3.833]
[1740413247035,3.7403,2673.4,2672.6,0.5631]
[1740413247245,0.74829,2672.7,2672.6,0.5631]
[1740413247843,1.87032,2673.3,2672.5,3.831]
[1740413247844,5.07825,2673.1,2672.5,3.831]
[1740413248042,2.24562,2672.9,2672.4,3.2078]
[1740413248339,0.375,2673.0,2672.2,1.87108]
[1740413248542,0.74827,2672.8,2672.7,0.74828]
[1740413248742,0.375,2673.0,2672.4,3.2078]
[1740413248941,3.2078,2673.1,2672.4,3.95616]
[1740413248942,0.74834,2672.5,2672.4,3.95616]
[1740413249146,0.375,2672.9,2672.3,3.7602]